bitfinex-derivatives/quotes_BNBF0:USTF0_20251220
["timestamp","ask_amount","ask_price","bid_price","bid_amount"]
[1766225790227,0.87641501,853.18,852.28,0.20398593]
[1766225804142,0.87641501,853.17,852.28,0.20398593]
[1766225806142,0.87641501,853.16,852.28,0.20398593]
[1766225808046,0.87641501,853.15,852.28,0.20398593]
[1766225831566,0.87641501,853.15,852.27,4.48567937]
[1766225842280,0.87641501,853.14,852.27,4.48567937]
[1766225843486,3.97175713,853.14,852.27,4.48567937]
[1766225848191,0.87641501,853.13,852.27,4.48567937]
[1766225848490,0.87641501,853.13,852.27,5.655821]
[1766225863103,0.87641501,853.13,852.27,1.17014163]
[1766225906239,0.87641501,853.12,852.26,1.17014163]
[1766225906735,0.87641501,853.05,852.19,1.37416643]
[1766225907339,0.87641501,853.06,852.19,0.2040248]
[1766225908338,0.87641501,853.07,852.19,0.2040248]
[1766225909535,0.87641501,853.08,852.19,0.2040248]
[1766225912240,0.87641501,853.09,852.19,0.2040248]
[1766225918439,0.87641501,853.1,852.19,0.2040248]
[1766225930248,0.87641501,853.11,852.19,0.2040248]
[1766225935254,0.87641501,853.1,852.19,0.2040248]
[1766225947366,0.87641501,853.09,852.19,0.2040248]
[1766225954674,0.87641501,853.08,852.19,0.2040248]
[1766225957374,0.87641501,853.01,852.19,0.2040248]
[1766225958181,0.87641501,853.02,852.19,0.2040248]
[1766225963386,3.09534212,853.14,852.19,0.2040248]
[1766225963387,0.87641501,853.01,852.19,0.2040248]
[1766225964187,0.87641501,853.02,852.19,0.2040248]
[1766225964384,0.87641501,853.01,852.19,0.2040248]
[1766225965786,3.94993568,853.01,852.19,0.2040248]
[1766225967285,0.87641501,852.95,852.13,4.48174089]
[1766225968189,0.87641501,852.96,852.13,4.48174089]
[1766225970191,0.87641501,852.97,852.13,4.48174089]
[1766225971993,0.87641501,852.93,852.13,4.48174089]
[1766225972194,0.87641501,852.94,852.13,4.48174089]
[1766225974194,0.87641501,852.95,852.13,4.48174089]
[1766225976093,0.87641501,852.96,852.13,4.48174089]
[1766225979193,0.87641501,852.97,852.13,4.48174089]
[1766225983589,0.87641501,852.96,852.13,4.48174089]
[1766225984192,0.87641501,852.97,852.13,4.48174089]
[1766225985894,0.87641501,852.97,851.89,1.17014163]
[1766225986091,0.87641501,852.79,851.68,1.17014163]
[1766225986293,0.87641501,852.71,851.61,1.17014163]
[1766225986494,0.87641501,852.56,851.69,0.20413969]
[1766225986690,0.87641501,852.56,851.46,1.17014163]
[1766225986994,0.87641501,852.56,851.6,0.20416005]
[1766225987195,0.87641501,852.6,851.42,1.17014163]
[1766225987393,0.87641501,852.57,851.39,1.17014163]
[1766225987593,0.87641501,852.57,851.44,0.20419719]
[1766225988197,0.87641501,852.6,851.44,0.20419719]
[1766225988397,0.87641501,852.57,851.44,0.20419719]
[1766225989197,0.87641501,852.6,851.44,0.20419719]
[1766225990097,0.87641501,852.62,851.44,0.20419719]
[1766225991195,0.87641501,852.64,851.44,0.20419719]
[1766225991498,0.87641501,852.65,851.44,0.20419719]
[1766225992198,0.87641501,852.66,851.44,0.20419719]
[1766225993101,0.87641501,852.68,851.44,0.20419719]
[1766225994202,0.87641501,852.69,851.44,0.20419719]
[1766225994498,0.87641501,852.7,851.44,0.20419719]
[1766225995203,0.87641501,852.71,851.44,0.20419719]
[1766225996201,0.87641501,852.72,851.44,0.20419719]
[1766225997298,0.87641501,852.73,851.44,0.20419719]
[1766225998300,0.87641501,852.74,851.44,0.20419719]
[1766226000903,0.87641501,852.75,851.44,0.20419719]
[1766226001202,0.87641501,852.74,851.44,0.20419719]
[1766226001403,0.87641501,852.75,851.44,0.20419719]
[1766226003303,0.87641501,852.76,851.44,0.20419719]
[1766226006412,0.87641501,852.77,851.44,0.20419719]
[1766226007208,0.87641501,852.76,851.44,0.20419719]
[1766226007509,0.87641501,852.77,851.44,0.20419719]
[1766226018015,0.87641501,852.77,851.21,7.16764224]
[1766226018316,0.20419,852.48,851.47,0.20419]
[1766226027521,0.87641501,852.71,851.21,7.16764224]
[1766226027817,0.20419959,852.43,851.47,0.20419959]
[1766226028218,0.87641501,852.7,851.21,7.16764224]
[1766226029426,0.87641501,852.69,851.21,7.16764224]
[1766226029626,0.20420019,852.43,851.47,0.20420019]
[1766226043134,0.87641501,852.42,851.47,0.20420019]
[1766226043332,0.87641501,852.42,851.25,1.17014163]
[1766226043540,0.87641501,852.42,851.35,0.20422895]
[1766226044231,0.87641501,852.39,851.35,0.20422895]
[1766226044433,0.87641501,852.4,851.35,0.20422895]
[1766226045238,0.87641501,852.35,851.35,0.20422895]
[1766226046140,0.87641501,852.33,851.35,1.37437058]
[1766226050438,0.87641501,852.34,851.35,1.37437058]
[1766226051337,0.87641501,852.34,851.35,0.20422895]
[1766226055747,0.87641501,852.36,851.36,1.17014163]
[1766226055948,0.87641501,852.42,851.42,1.17014163]
[1766226056142,0.87641501,852.43,851.43,1.17014163]
[1766226059550,0.87641501,852.44,851.44,1.17014163]
[1766226059747,0.87641501,852.51,851.51,1.17014163]
[1766226061345,0.87641501,852.51,851.5,1.17014163]
[1766226065546,0.87641501,852.52,851.5,1.17014163]
[1766226066348,0.87641501,852.52,851.49,1.17014163]
[1766226071251,0.87641501,852.53,851.48,1.17014163]
[1766226078460,0.87641501,852.53,851.47,1.17014163]
[1766226079261,1.08061699,852.54,851.47,1.17014163]
[1766226084658,0.87641501,852.53,851.46,1.17014163]
[1766226085462,1.08061699,852.54,851.46,1.17014163]
[1766226086958,0.87641501,852.51,851.43,1.17014163]
[1766226087162,0.87641501,852.49,851.41,1.17014163]
[1766226087464,0.87641501,852.42,851.35,0.20422895]
[1766226088162,4.10512705,852.42,851.35,0.20422895]
[1766226094466,0.87641501,852.39,851.35,0.20422895]
[1766226101869,0.87641501,852.38,851.35,0.20422895]
[1766226102265,0.87641501,852.38,851.28,1.17014163]
[1766226102472,0.87641501,852.32,851.23,1.17014163]
[1766226103269,0.87641501,852.01,850.91,1.17014163]
[1766226103473,3.22871204,852.42,850.14,2.92891307]
[1766226103474,0.87641501,852.03,850.87,1.17014163]
[1766226103674,0.87641501,851.98,850.87,0.20433147]
[1766226104370,0.87641501,852.01,850.87,0.20433147]
[1766226105370,0.87641501,852.04,850.87,0.20433147]
[1766226106470,0.87641501,852.06,850.87,0.20433147]
[1766226107472,0.87641501,852.08,850.87,0.20433147]
[1766226108578,0.87641501,852.1,850.87,0.20433147]
[1766226109278,0.87641501,852.14,850.87,0.20433147]
[1766226110277,0.87641501,852.15,850.87,0.20433147]
[1766226111281,0.87641501,852.16,850.87,0.20433147]
[1766226111582,0.87641501,852.17,850.87,0.20433147]
[1766226112382,0.87641501,852.18,850.87,0.20433147]
[1766226113482,0.87641501,852.19,850.87,0.20433147]
[1766226114481,0.87641501,852.2,850.87,0.20433147]
[1766226115485,0.87641501,852.21,850.87,0.20433147]
[1766226115884,0.87641501,852.2,850.87,0.20433147]
[1766226116285,0.87641501,852.21,850.87,0.20433147]
[1766226117280,0.87641501,852.22,850.87,0.20433147]
[1766226119286,0.87641501,852.23,850.87,0.20433147]
[1766226134198,0.87641501,852.21,850.87,0.20433147]
[1766226139398,0.87641501,852.2,850.87,0.20433147]
[1766226141306,0.87641501,852.19,850.87,0.20433147]
[1766226142310,0.87641501,852.18,850.87,0.20433147]
[1766226143311,0.87641501,852.17,850.87,0.20433147]
[1766226144312,3.22871204,852.42,850.87,0.20433147]
[1766226144313,0.87641501,852.16,850.87,0.20433147]
[1766226145310,0.87641501,852.15,850.87,0.20433147]
[1766226146314,0.87641501,852.14,850.87,0.20433147]
[1766226147418,0.87641501,852.13,850.87,0.20433147]
[1766226148413,0.87641501,852.12,850.87,0.20433147]
[1766226149318,0.87641501,852.11,850.87,0.20433147]
[1766226151420,0.87641501,852.1,850.87,0.20433147]
[1766226152320,0.87045797,852.08,850.87,0.20433147]
[1766226153420,0.87045797,852.07,850.87,0.20433147]
[1766226154421,0.87045797,852.06,850.87,0.20433147]
[1766226155317,0.87045797,852.04,850.87,0.20433147]
[1766226156322,0.87045797,852.03,850.87,0.20433147]
[1766226157326,0.87045797,852.01,850.87,0.20433147]
[1766226158221,0.87045797,852.0,850.87,0.20433147]
[1766226158426,0.87045797,851.99,850.87,0.20433147]
[1766226159326,0.87045797,851.97,850.87,0.20433147]
[1766226160425,0.87045797,851.95,850.87,0.20433147]
[1766226161423,0.87045797,851.91,850.89,1.17014163]
[1766226162322,0.87045797,851.85,850.95,1.17014163]
[1766226173336,0.87045797,851.85,850.96,1.17014163]
[1766226178538,0.87045797,851.8,850.92,1.17014163]
[1766226179347,0.87045797,851.81,850.91,1.17014163]
[1766226182546,1.17167399,851.96,850.91,1.17014163]
[1766226182750,0.87617248,851.81,850.91,1.17014163]
[1766226185354,0.87617248,851.81,850.9,1.17014163]
[1766226186453,0.87617248,851.82,850.9,1.17014163]
[1766226194362,0.87617248,851.83,850.9,1.17014163]
[1766226206876,1.54264025,851.82,850.87,0.20433147]
[1766226207176,0.66646777,851.81,850.87,0.20433147]
[1766226207472,0.66646777,851.8,850.87,0.20433147]
[1766226207672,0.66646777,851.79,850.87,0.20433147]
[1766226207873,0.66646777,851.78,850.87,0.20433147]
[1766226208076,0.66646777,851.77,850.87,0.20433147]
[1766226208275,0.66646777,851.76,850.87,0.20433147]
[1766226208474,0.66646777,851.75,850.87,0.20433147]
[1766226208775,0.66646777,851.74,850.87,0.20433147]
[1766226208976,0.66646777,851.73,850.87,0.20433147]
[1766226209176,0.66646777,851.72,850.87,0.20433147]
[1766226209372,0.87617248,851.82,850.87,0.20433147]
[1766226209373,0.66646777,851.71,850.87,0.20433147]
[1766226209576,0.66646777,851.7,850.87,0.20433147]
[1766226209772,0.66646777,851.69,850.87,0.20433147]
[1766226209979,0.66646777,851.68,850.87,0.20433147]
[1766226210172,0.66646777,851.67,850.87,0.20433147]
[1766226210377,0.66646777,851.66,850.87,0.20433147]
[1766226210676,0.66646777,851.65,850.87,0.20433147]
[1766226210876,0.66646777,851.64,850.87,0.20433147]
[1766226211073,0.66646777,851.63,850.87,0.20433147]
[1766226211277,0.66646777,851.62,850.87,0.20433147]
[1766226211578,0.66646777,851.61,850.87,0.20433147]
[1766226211778,0.66646777,851.6,850.87,0.20433147]
[1766226211979,0.66646777,851.59,850.87,0.20433147]
[1766226212179,0.66646777,851.58,850.87,0.20433147]
[1766226212474,3.05415742,851.75,850.87,0.20433147]
[1766226212475,0.66646777,851.57,850.87,0.20433147]
[1766226212679,0.66646777,851.56,850.87,0.20433147]
[1766226212979,0.66646777,851.55,850.87,0.20433147]
[1766226213175,3.05415742,851.75,850.87,0.20433147]
[1766226213477,0.66647342,851.74,850.87,0.20433147]
[1766226213674,0.66647342,851.73,850.87,0.20433147]
[1766226213879,0.66647342,851.72,850.87,0.20433147]
[1766226214178,0.66647342,851.71,850.87,0.20433147]
[1766226214476,0.66647342,851.7,850.87,0.20433147]
[1766226214679,0.66647342,851.69,850.87,0.20433147]
[1766226214880,0.66647342,851.68,850.87,0.20433147]
[1766226215081,0.66647342,851.67,850.87,0.20433147]
[1766226215278,0.66647342,851.66,850.87,0.20433147]
[1766226215483,0.66648285,851.65,850.87,0.20433147]
[1766226215781,0.66648285,851.64,850.87,0.20433147]
[1766226215978,0.66648285,851.63,850.87,0.20433147]
[1766226216282,0.66648285,851.62,850.87,0.20433147]
[1766226216478,0.66648285,851.61,850.87,0.20433147]
[1766226216683,0.66648285,851.6,850.87,0.20433147]
[1766226216880,0.66648285,851.59,850.87,0.20433147]
[1766226217180,0.66648285,851.58,850.87,0.20433147]
[1766226217384,0.66648285,851.57,850.87,0.20433147]
[1766226217583,0.66648285,851.56,850.87,0.20433147]
[1766226217782,0.66648285,851.55,850.87,0.20433147]
[1766226217979,0.66648285,851.54,850.87,0.20433147]
[1766226218179,0.66648285,851.53,850.87,0.20433147]
[1766226218483,0.66648285,851.52,850.87,0.20433147]
[1766226218685,0.66648285,851.51,850.87,0.20433147]
[1766226218887,0.66648285,851.5,850.87,0.20433147]
[1766226219181,0.66648285,851.49,850.87,0.20433147]
[1766226219379,0.66648285,851.48,850.87,0.20433147]
[1766226219585,3.92993226,851.75,850.87,0.20433147]
[1766226219882,0.66624641,851.74,850.87,0.20433147]
[1766226220183,0.66624641,851.73,850.87,0.20433147]
[1766226220380,0.66624641,851.72,850.87,0.20433147]
[1766226220585,0.66624641,851.71,850.87,0.20433147]
[1766226220782,0.66624641,851.7,850.87,0.20433147]
[1766226220980,0.66624641,851.69,850.87,0.20433147]
[1766226221284,0.66624641,851.68,850.87,0.20433147]
[1766226221483,0.66624641,851.67,850.87,0.20433147]
[1766226221684,0.66624641,851.66,850.87,0.20433147]
[1766226221885,0.66624641,851.65,850.87,0.20433147]
[1766226222081,0.66624641,851.64,850.87,0.20433147]
[1766226222283,0.66624641,851.63,850.87,0.20433147]
[1766226222486,0.66624641,851.62,850.87,0.20433147]
[1766226222681,0.66624641,851.61,850.87,0.20433147]
[1766226222882,0.66624641,851.6,850.87,0.20433147]
[1766226223082,0.66624641,851.59,850.87,0.20433147]
[1766226223282,0.66624641,851.58,850.87,0.20433147]
[1766226223486,0.66624641,851.57,850.87,0.20433147]
[1766226223687,0.66624641,851.56,850.87,0.20433147]
[1766226223888,0.66624641,851.55,850.87,0.20433147]
[1766226224083,0.66624641,851.54,850.87,0.20433147]
[1766226224283,0.66624641,851.53,850.87,0.20433147]
[1766226224484,0.66624641,851.52,850.87,0.20433147]
[1766226224685,0.66624641,851.51,850.87,0.20433147]
[1766226224884,0.66624641,851.5,850.87,0.20433147]
[1766226225089,0.66624641,851.49,850.87,0.20433147]
[1766226225288,3.05415742,851.75,850.87,0.20433147]
[1766226225484,0.66602838,851.74,850.87,0.20433147]
[1766226225688,0.66602838,851.73,850.87,0.20433147]
[1766226225885,0.66602838,851.72,850.87,0.20433147]
[1766226226090,0.66602838,851.71,850.87,0.20433147]
[1766226226389,0.66602838,851.7,850.87,0.20433147]
[1766226226589,0.66602838,851.69,850.87,0.20433147]
[1766226226784,0.66602838,851.68,850.87,0.20433147]
[1766226226989,0.66602838,851.67,850.87,0.20433147]
[1766226227186,0.66602838,851.66,850.87,0.20433147]
[1766226227385,0.66602838,851.65,850.87,0.20433147]
[1766226227590,0.66602838,851.64,850.87,0.20433147]
[1766226227788,0.66602838,851.63,850.87,0.20433147]
[1766226227988,0.66602838,851.62,850.87,0.20433147]
[1766226228186,0.66602838,851.61,850.87,0.20433147]
[1766226228388,0.66602838,851.6,850.87,0.20433147]
[1766226228687,0.66602838,851.59,850.87,0.20433147]
[1766226228991,0.66602838,851.58,850.87,0.20433147]
[1766226229288,0.66602838,851.57,850.87,0.20433147]
[1766226229588,0.66602838,851.56,850.87,0.20433147]
[1766226229787,0.66602838,851.55,850.87,0.20433147]
[1766226229992,0.66602838,851.54,850.87,0.20433147]
[1766226230187,0.66602838,851.53,850.87,0.20433147]
[1766226230391,0.66602838,851.52,850.87,0.20433147]
[1766226230588,0.66602838,851.51,850.87,0.20433147]
[1766226230791,0.66602838,851.5,850.87,0.20433147]
[1766226230991,3.05415742,851.75,850.87,0.20433147]
[1766226231189,0.6659488,851.74,850.87,0.20433147]
[1766226231393,0.6659488,851.73,850.87,0.20433147]
[1766226231692,0.6659488,851.72,850.87,0.20433147]
[1766226231889,0.66594107,851.71,850.87,0.20433147]
[1766226232093,0.66594107,851.7,850.87,0.20433147]
[1766226232293,0.66594107,851.69,850.87,0.20433147]
[1766226232494,0.66594107,851.68,850.87,0.20433147]
[1766226232689,0.66594107,851.67,850.87,0.20433147]
[1766226232993,0.66594107,851.66,850.87,0.20433147]
[1766226233188,0.66594107,851.65,850.87,0.20433147]
[1766226233388,0.66594107,851.64,850.87,0.20433147]
[1766226233588,0.66594107,851.63,850.87,0.20433147]
[1766226233794,0.66594107,851.62,850.87,0.20433147]
[1766226233994,0.66594107,851.61,850.87,0.20433147]
[1766226234292,0.66594107,851.6,850.87,0.20433147]
[1766226234592,0.66594107,851.59,850.87,0.20433147]
[1766226234795,0.66594107,851.58,850.87,0.20433147]
[1766226234996,0.66594107,851.57,850.87,0.20433147]
[1766226235195,0.66594107,851.56,850.87,0.20433147]
[1766226235494,0.66594107,851.55,850.87,0.20433147]
[1766226235798,0.66594107,851.54,850.87,0.20433147]
[1766226235998,0.66594107,851.53,850.87,0.20433147]
[1766226236199,0.66594107,851.52,850.87,0.20433147]
[1766226236395,0.66594107,851.51,850.87,0.20433147]
[1766226236599,0.66594107,851.5,850.87,0.20433147]
[1766226236796,0.66594107,851.49,850.87,0.20433147]
[1766226237100,3.05415742,851.75,850.87,0.20433147]
[1766226237300,0.66594511,851.74,850.87,0.20433147]
[1766226237503,0.66594511,851.73,850.87,0.20433147]
[1766226237806,0.66594511,851.72,850.87,0.20433147]
[1766226238004,0.66594511,851.71,850.87,0.20433147]
[1766226238203,0.66594511,851.7,850.87,0.20433147]
[1766226238401,0.66594511,851.69,850.87,0.20433147]
[1766226238602,0.66594511,851.68,850.87,0.20433147]
[1766226238805,0.66594511,851.67,850.87,0.20433147]
[1766226239005,0.66594511,851.66,850.87,0.20433147]
[1766226239204,0.66594511,851.65,850.87,0.20433147]
[1766226239405,0.66594511,851.64,850.87,0.20433147]
[1766226239604,0.66594511,851.63,850.87,0.20433147]
[1766226239807,0.66594511,851.62,850.87,0.20433147]
[1766226240009,0.66594511,851.61,850.87,0.20433147]
[1766226240210,0.66594511,851.6,850.87,0.20433147]
[1766226240414,0.66594511,851.59,850.87,0.20433147]
[1766226240610,0.66594511,851.58,850.87,0.20433147]
[1766226240811,0.66594511,851.57,850.87,0.20433147]
[1766226241011,0.66594511,851.56,850.87,0.20433147]
[1766226241212,0.66594511,851.55,850.87,0.20433147]
[1766226241409,0.66594511,851.54,850.87,0.20433147]
[1766226241612,0.66594511,851.53,850.87,0.20433147]
[1766226241908,0.66594511,851.52,850.87,0.20433147]
[1766226242113,0.66594511,851.51,850.87,0.20433147]
[1766226242307,0.66594511,851.5,850.87,0.20433147]
[1766226242510,0.66594511,851.49,850.87,0.20433147]
[1766226242712,3.05415742,851.75,850.87,0.20433147]
[1766226242908,0.66592951,851.74,850.87,0.20433147]
[1766226243108,0.66592951,851.73,850.87,0.20433147]
[1766226243408,0.66592951,851.72,850.87,0.20433147]
[1766226243607,0.66592951,851.71,850.87,0.20433147]
[1766226243812,0.66592951,851.7,850.87,0.20433147]
[1766226244007,0.66592951,851.69,850.87,0.20433147]
[1766226244212,0.66592951,851.68,850.87,0.20433147]
[1766226244410,0.66592951,851.67,850.87,0.20433147]
[1766226244612,0.66592951,851.66,850.87,0.20433147]
[1766226244809,0.66592951,851.65,850.87,0.20433147]
[1766226245013,0.66592951,851.64,850.87,0.20433147]
[1766226245214,0.66592951,851.63,850.87,0.20433147]
[1766226245513,0.66592951,851.62,850.87,0.20433147]
[1766226245710,0.66592951,851.61,850.87,0.20433147]
[1766226245909,0.66592951,851.6,850.87,0.20433147]
[1766226246113,3.05415742,851.75,850.87,0.20433147]
[1766226246114,0.66592951,851.59,850.87,0.20433147]
[1766226246310,0.66592951,851.58,850.87,0.20433147]
[1766226246510,0.66592951,851.57,850.87,0.20433147]
[1766226246714,0.66592951,851.56,850.87,0.20433147]
[1766226247010,0.66592951,851.55,850.87,0.20433147]
[1766226247209,0.66592951,851.54,850.87,0.20433147]
[1766226247412,0.66592951,851.53,850.87,0.20433147]
[1766226247616,0.66592951,851.52,850.87,0.20433147]
[1766226247816,0.66592951,851.51,850.87,0.20433147]
[1766226248016,0.66592951,851.5,850.87,0.20433147]
[1766226248217,0.66588749,851.49,850.57,34.92507017]
[1766226248418,0.66588749,851.48,850.69,0.20440108]
[1766226248611,0.66588749,851.47,850.69,0.20440108]
[1766226248817,0.66588749,851.46,850.69,0.20440108]
[1766226249113,0.66588749,851.45,850.69,0.20440108]
[1766226249313,0.66588749,851.44,850.69,0.20440108]
[1766226249613,0.66588749,851.43,850.69,0.20440108]
[1766226249813,0.66588749,851.42,850.69,0.20440108]
[1766226250014,0.87505965,851.7,850.69,0.20440108]
[1766226250212,0.66572369,851.69,850.69,0.20440108]
[1766226250516,0.66572369,851.68,850.69,0.20440108]
[1766226250714,0.66572369,851.67,850.69,0.20440108]
[1766226250912,0.66572369,851.66,850.69,0.20440108]
[1766226251116,0.66572369,851.65,850.69,0.20440108]
[1766226251317,0.66572369,851.64,850.69,0.20440108]
[1766226251613,0.66572369,851.63,850.69,0.20440108]
[1766226251814,0.66572369,851.62,850.69,0.20440108]
[1766226252014,0.66572369,851.61,850.69,0.20440108]
[1766226252218,0.66572369,851.6,850.69,0.20440108]
[1766226252514,0.66572369,851.59,850.69,0.20440108]
[1766226252713,0.66572369,851.58,850.69,0.20440108]
[1766226252914,0.66572369,851.57,850.69,0.20440108]
[1766226253121,0.66572369,851.56,850.69,0.20440108]
[1766226253419,0.66572369,851.55,850.69,0.20440108]
[1766226253615,0.66572369,851.54,850.69,0.20440108]
[1766226253820,0.66572369,851.53,850.69,0.20440108]
[1766226254015,0.66572369,851.52,850.69,0.20440108]
[1766226254216,0.66572369,851.51,850.69,0.20440108]
[1766226254420,0.66572369,851.5,850.69,0.20440108]
[1766226254720,0.66572369,851.49,850.69,0.20440108]
[1766226254919,0.66572369,851.48,850.69,0.20440108]
[1766226255115,0.66572369,851.47,850.69,0.20440108]
[1766226255317,0.66572369,851.46,850.69,0.20440108]
[1766226255619,0.66572369,851.45,850.69,0.20440108]
[1766226255816,0.66572369,851.44,850.69,0.20440108]
[1766226256019,0.87505965,851.71,850.69,0.20440108]
[1766226256218,0.66551902,851.7,850.69,0.20440108]
[1766226256418,0.86992191,851.69,850.69,0.20440108]
[1766226256617,0.66551902,851.68,850.69,0.20440108]
[1766226256821,0.66551902,851.67,850.69,0.20440108]
[1766226257020,0.66551902,851.66,850.69,0.20440108]
[1766226257217,0.66551902,851.65,850.69,0.20440108]
[1766226257417,0.66551902,851.64,850.69,0.20440108]
[1766226257617,0.66551902,851.63,850.69,0.20440108]
[1766226257817,0.66551902,851.62,850.69,0.20440108]
[1766226258017,0.66551902,851.61,850.69,0.20440108]
[1766226258223,0.66551902,851.6,850.69,0.20440108]
[1766226258521,0.66551902,851.59,850.69,0.20440108]
[1766226258722,0.66551902,851.58,850.69,0.20440108]
[1766226259024,0.66551902,851.57,850.69,0.20440108]
[1766226259222,0.66551902,851.56,850.69,0.20440108]
[1766226259423,0.66551902,851.55,850.69,0.20440108]
[1766226259623,0.66551902,851.54,850.69,0.20440108]
[1766226259819,0.66551902,851.53,850.69,0.20440108]
[1766226260023,0.66551902,851.52,850.69,0.20440108]
[1766226260323,0.66551902,851.51,850.69,0.20440108]
[1766226260623,0.66551902,851.5,850.69,0.20440108]
[1766226260919,0.66551902,851.49,850.69,0.20440108]
[1766226261222,0.66551902,851.48,850.69,0.20440108]
[1766226261417,0.66551902,851.47,850.69,0.20440108]
[1766226261619,0.66551902,851.46,850.69,0.20440108]
[1766226261920,0.66551902,851.45,850.69,0.20440108]
[1766226262118,0.66551902,851.44,850.69,0.20440108]
[1766226262424,0.20440289,851.69,850.69,0.20440108]
[1766226262621,0.66545584,851.68,850.69,0.20440108]
[1766226262823,0.66545584,851.67,850.69,0.20440108]
[1766226263020,0.66545584,851.66,850.69,0.20440108]
[1766226263319,0.66545584,851.65,850.69,0.20440108]
[1766226263520,0.66545584,851.64,850.69,0.20440108]
[1766226263725,0.66545584,851.63,850.69,0.20440108]
[1766226263924,0.66545584,851.62,850.69,0.20440108]
[1766226264122,0.66545584,851.61,850.69,0.20440108]
[1766226264322,0.66545584,851.6,850.69,0.20440108]
[1766226264525,0.66545584,851.59,850.69,0.20440108]
[1766226264725,0.66545584,851.58,850.69,0.20440108]
[1766226264925,0.66545584,851.57,850.69,0.20440108]
[1766226265225,0.66545584,851.56,850.69,0.20440108]
[1766226265528,0.66545584,851.55,850.69,0.20440108]
[1766226265726,0.66545584,851.54,850.69,0.20440108]
[1766226265925,0.66545584,851.53,850.69,0.20440108]
[1766226266122,0.66545584,851.52,850.69,0.20440108]
[1766226266422,0.66545584,851.51,850.69,0.20440108]
[1766226266626,0.66545584,851.5,850.69,0.20440108]
[1766226266826,0.66545584,851.49,850.69,0.20440108]
[1766226267023,0.66545584,851.48,850.69,0.20440108]
[1766226267228,0.66545584,851.47,850.69,0.20440108]
[1766226267432,0.66545584,851.46,850.69,0.20440108]
[1766226267727,0.66545584,851.45,850.69,0.20440108]
[1766226267929,0.66545584,851.44,850.69,0.20440108]
[1766226268128,0.20440289,851.69,850.69,0.20440108]
[1766226268328,0.66417279,851.68,850.69,0.20440108]
[1766226268525,0.66417279,851.67,850.69,0.20440108]
[1766226268725,0.66417279,851.66,850.69,0.20440108]
[1766226268929,0.66417279,851.65,850.69,0.20440108]
[1766226269229,0.66417279,851.64,850.69,0.20440108]
[1766226269430,0.66417279,851.63,850.69,0.20440108]
[1766226269729,0.20440289,851.69,850.69,0.20440108]
[1766226269730,0.66417279,851.62,850.69,0.20440108]
[1766226269930,0.66417279,851.61,850.69,0.20440108]
[1766226270228,0.66417279,851.6,850.69,0.20440108]
[1766226270429,0.66417279,851.59,850.69,0.20440108]
[1766226270625,0.66417279,851.58,850.69,0.20440108]
[1766226270824,0.66417279,851.57,850.69,0.20440108]
[1766226271029,0.66417279,851.56,850.69,0.20440108]
[1766226271325,0.66417279,851.55,850.69,0.20440108]
[1766226271529,0.66417279,851.54,850.69,0.20440108]
[1766226271730,0.66417279,851.53,850.69,0.20440108]
[1766226271925,0.66417279,851.52,850.69,0.20440108]
[1766226272125,0.66417279,851.51,850.69,0.20440108]
[1766226272329,0.66417279,851.5,850.69,0.20440108]
[1766226272624,0.66417279,851.49,850.69,0.20440108]
[1766226272823,0.66417279,851.48,850.69,0.20440108]
[1766226273027,0.66417279,851.47,850.69,0.20440108]
[1766226273228,0.66417279,851.46,850.69,0.20440108]
[1766226273425,0.66417279,851.45,850.69,0.20440108]
[1766226273626,0.66417279,851.44,850.69,0.20440108]
[1766226273824,0.66417279,851.43,850.69,0.20440108]
[1766226274027,0.20440289,851.69,850.69,0.20440108]
[1766226274331,0.66437228,851.68,850.69,0.20440108]
[1766226274530,0.66437228,851.67,850.69,0.20440108]
[1766226274826,0.66437228,851.66,850.69,0.20440108]
[1766226275027,0.66437228,851.65,850.69,0.20440108]
[1766226275230,0.66437228,851.64,850.69,0.20440108]
[1766226275530,0.66437228,851.63,850.69,0.20440108]
[1766226275730,0.66437228,851.62,850.69,0.20440108]
[1766226275924,0.66437228,851.61,850.69,0.20440108]
[1766226276129,0.66437228,851.6,850.69,0.20440108]
[1766226276435,0.66437228,851.59,850.69,0.20440108]
[1766226276730,0.66437228,851.58,850.69,0.20440108]
[1766226276931,0.66437228,851.57,850.69,0.20440108]
[1766226277127,0.66437228,851.56,850.69,0.20440108]
[1766226277332,0.66437228,851.55,850.69,0.20440108]
[1766226277531,0.66437228,851.54,850.69,0.20440108]
[1766226277731,0.66437228,851.53,850.69,0.20440108]
[1766226277932,0.66437228,851.52,850.69,0.20440108]
[1766226278130,0.66437228,851.51,850.69,0.20440108]
[1766226278327,0.66464455,851.5,850.69,0.20440108]
[1766226278531,0.66464455,851.49,850.69,0.20440108]
[1766226278732,0.66464455,851.48,850.69,0.20440108]
[1766226278932,0.66464455,851.47,850.69,0.20440108]
[1766226279131,1.07949423,851.69,850.69,0.20440108]
[1766226279132,0.66464455,851.46,850.69,0.20440108]
[1766226279432,0.66464455,851.45,850.69,0.20440108]
[1766226279630,0.66464455,851.44,850.69,0.20440108]
[1766226279833,0.66464455,851.43,850.69,0.20440108]
[1766226280035,0.66464455,851.42,850.69,0.20440108]
[1766226280334,1.07949423,851.69,850.69,0.20440108]
[1766226280629,0.66465776,851.68,850.69,0.20440108]
[1766226280933,0.66465776,851.67,850.69,0.20440108]